Cogmind - Beta 14 @@@ ROGUE MODE // 2024.12.10 @ 23:46:22 Player: babadi Result: Destroyed by as-30022 with Assembled F-torch Performance ------------- Evolutions (0) 0 Regions Visited (2) 400 Robots Destroyed (15) 75 Value Destroyed (418) 418 Prototype IDs (4) 80 Alien Tech Used (0) 0 Bonus (0) 0 TOTAL SCORE: 973 Bonus ------- None Cogmind --------- Core Integrity 0/250 Matter 286/300 Energy 100/100 System Corruption 1% Temperature Cool (20) Movement Core (250) Ox4 Location -10/Mines Parts ------- > --- POWER (1) -------- (None) > --- PROPULSION (2) --- (None) > --- UTILITY (2) ------ Sensor Drone Bay (20/20) > --- WEAPON (2) ------- (None) > --- INVENTORY (5) ---- Light Treads Light Treads Transport Network Coupler Targeting Computer Light Assault Rifle Peak State ------------ > --- POWER ------------ (None) > --- PROPULSION ------- (None) > --- UTILITY ---------- Sensor Drone Bay > --- WEAPON ----------- (None) > --- INVENTORY -------- Light Treads Light Treads Transport Network Coupler Targeting Computer Light Assault Rifle [Rating: 8] Favorites ----------- Power Light Ion Engine Engine Light Ion Engine Propulsion Wheel Treads Light Treads Leg Aluminum Leg Wheel Wheel Utility Large Storage Unit Device Heat Sink Storage Large Storage Unit Processor Targeting Computer Weapon Medium Laser Energy Gun Medium Laser Energy Cannon Beam Cannon Ballistic Gun Light Assault Rifle Build | -11 -10 -10 ------- Run | Yrd Mat Min Slots Evolved . | . . . Power . | . . . Propulsion . | . . . Utility . | . . . Weapon . | . . . Parts Attached 22 | 6 12 4 Power 2 | 1 1 . Engine 2 | 1 1 . Core . | . . . Reactor . | . . . Propulsion 6 | 2 2 2 Treads 2 | . 2 . Leg 2 | . . 2 Wheel 2 | 2 . . Hover . | . . . Flight . | . . . Utility 8 | 1 6 1 Device 2 | . 1 1 Storage 5 | 1 4 . Processor 1 | . 1 . Hackware . | . . . Protection . | . . . Artifact . | . . . Weapon 6 | 2 3 1 Energy Gun 2 | . 2 . Energy Cannon 1 | . 1 . Ballistic Gun 3 | 2 . 1 Ballistic Cannon . | . . . Launcher . | . . . Special Weapon . | . . . Impact Weapon . | . . . Slashing Weapon . | . . . Piercing Weapon . | . . . Special Melee Weapon . | . . . Unidentified Prototypes 1 | . . 1 Parts Lost 6 | . 5 1 Power 1 | . 1 . Propulsion 2 | . 2 . Utility 1 | . 1 . Weapon 2 | . 1 1 Highest Loss Streak 3 | . 3 1 To Critical Strikes . | . . . Average Slot Usage (%) 71 | . 85 44 Engine 9 | . 12 5 Treads 9 | . 9 9 Wheel 9 | . 14 . Device 6 | . 3 10 Storage 11 | . 14 5 Processor 5 | . 7 . Energy Gun 8 | . 12 . Energy Cannon 6 | . 6 5 Ballistic Gun 4 | . 4 5 Peak Build Rating 8 | 6 7 8 Average Rating 5 | 4 5 5 On Entrance 4 | . 6 6 Naked Turns 46 | . . 46 Heaviest Build 29 | 10 28 29 Greatest Support 40 | 20 40 40 Greatest Overweight (x) 4 | . 2 4 Average Overweight (x) . | . . . Largest Inventory Capacity 15 | 8 15 15 Average Capacity 11 | 7 13 8 Most Carried 8 | 6 8 7 Average Carried 6 | 3 6 5 Final Capacity 15 | 8 15 5 Final Carried 8 | 6 8 5 Class Distribution -------------------- 100% | Mutant Dominant Class ---------------- Mutant | -10/Materials Mutant | -10/Mines Resources | -11 -10 -10 ----------- Run | Yrd Mat Min Matter Collected 416 | 256 109 51 Remotely . | . . . Salvage Created 518 | . 439 79 Parts 23 | . 20 3 Haulers Intercepted 1 | . 1 . Recyclers Shooed . | . . . Parts Field Recycled . | . . . Retrieved Matter . | . . . Parts Self-Destructed . | . . . Prevented . | . . . Kills | -11 -10 -10 ------- Run | Yrd Mat Min Combat Hostiles Destroyed 12 | . 10 2 Guns 6 | . 4 2 Cannons 5 | . 5 . Classes Destroyed 5 | . 5 . Builder 1 | . 1 . Hauler 1 | . 1 . Watcher 1 | . 1 . Swarmer 3 | . 3 . Grunt 9 | . 7 2 Best Kill Streak 8 | . 8 2 Combat Bots Only 7 | . 7 2 Max Kills in Single Turn 1 | . 1 1 Gunslinging . | . . . Exploded . | . . . Melee . | . . . Uniques/NPCs Destroyed . | . . . Combat | -11 -10 -10 -------- Run | Yrd Mat Min Hostile Shots Fired 86 | . 56 30 Missed 24 | . 11 13 Damage Taken 760 | . 544 216 Core 252 | . 144 108 Absorbed by Shields . | . . . Core Remaining (%) 100 | 100 . . Volleys Fired 46 | . 42 4 Largest 2 | . 2 2 Hottest 110 | . 110 80 Shots Fired 81 | . 73 8 Gun 55 | . 51 4 Cannon 26 | . 22 4 Launcher . | . . . Special . | . . . Kinetic 4 | . . 4 Thermal 77 | . 73 4 Explosive . | . . . Electromagnetic . | . . . Robot Hit Streak 14 | . 14 5 Robot Miss Streak 3 | . 3 1 Penetration Max . | . . . Secondary Targets . | . . . Shots Hit Robots 61 | . 54 7 Core Hits 23 | . 19 4 Critical Kills . | . . . Critical Parts Destroyed . | . . . Critical Strikes 7 | . 7 . Burn 7 | . 7 . Melee Attacks . | . . . Impact . | . . . Slashing . | . . . Piercing . | . . . Sneak Attacks . | . . . Combat Hostiles . | . . . Follow-up Attacks . | . . . Damage Inflicted 872 | . 765 107 Guns 608 | . 554 54 Cannons 264 | . 211 53 Explosions . | . . . Melee . | . . . Ramming . | . . . Kinetic 54 | . . 54 Thermal 818 | . 765 53 Explosive . | . . . Electromagnetic . | . . . Impact . | . . . Slashing . | . . . Piercing . | . . . Highest Corruption 1 | . 1 1 Average Corruption 1 | . 1 1 Corruption Purged . | . . . Corruption Blocked . | . . . Effects 4 | . . 4 Matter Fused 3 | . . 3 Heat Flow Errors 1 | . . 1 Overload Shots . | . . . Overflow Damage . | . . . Projectiles . | . . . Explosions . | . . . Melee . | . . . Knockbacks . | . . . Impact . | . . . Kinetic . | . . . Secondary . | . . . Self-Inflicted Damage . | . . . Shots . | . . . Rammed . | . . . Targets Rammed . | . . . Kicked . | . . . Crushed . | . . . Highest Temperature 318 | . 318 204 Average Temperature 109 | . 115 53 Received Heat Transfer 513 | . 306 207 Effects 1 | . 1 . Energy Bleed 1 | . 1 . Siege Activations . | . . . Robots Corrupted . | . . . Combat Hostiles . | . . . Parts Fried . | . . . Impact Corruptions . | . . . Robots Melted 1 | . 1 . Combat Hostiles 1 | . 1 . Parts Melted 4 | . 4 . Heat Transferred 2701 | . 2590 111 Parts Sabotaged . | . . . Parts Stolen . | . . . Parts Stripped . | . . . Power Chain Reactions . | . . . Alert | -11 -10 -10 ------- Run | Yrd Mat Min Peak Influence 369 | . 369 156 Initial 71 | . . 71 Average 134 | . 154 127 Maximum Alert Level 1 | . 1 . Low Security (%) 80 | 100 68 100 Level 1 19 | . 31 . Level 2 . | . . . Level 3 . | . . . Level 4 . | . . . Level 5 . | . . . High Security . | . . . Max Security . | . . . Squads Dispatched 3 | . 3 . Investigation 1 | . 1 . Extermination . | . . . Reinforcement 2 | . 2 . Assault . | . . . Garrison . | . . . Intercept . | . . . Searches Triggered . | . . . Construction Impeded . | . . . Haulers Reinforced . | . . . Active Scanning Responses . | . . . Cargo Convoy Interrupts . | . . . Stealth | -11 -10 -10 --------- Run | Yrd Mat Min Distress Signals 3 | . 3 . Communications Jammed . | . . . Distress Signals . | . . . Times Spotted 38 | . 20 18 Peak Tracking Total 12 | . 6 12 Tactical Retreats 3 | . 1 2 Traps | -11 -10 -10 ------- Run | Yrd Mat Min Traps Triggered . | . . . Indirectly . | . . . Trap Hack Attempts . | . . . Triggered . | . . . Disarmed . | . . . Reprogrammed . | . . . Reused . | . . . Traps Extracted . | . . . Installed . | . . . Triggered . | . . . Machines | -11 -10 -10 ---------- Run | Yrd Mat Min Machines Disabled 2 | . 2 . Max in Single Turn 1 | . 1 . Machines Repaired . | . . . Machines Dismantled . | . . . Machines Sabotaged . | . . . Overloaded Fab Kills . | . . . Hacking | -11 -10 -10 --------- Run | Yrd Mat Min Machines Accessed 4 | . 3 1 Terminals 3 | . 3 . Fabricators . | . . . Repair Stations . | . . . Recycling Units . | . . . Scanalyzers . | . . . Garrison Access . | . . . Total Hacks 9 | . 8 1 Successful 6 | . 5 1 Failed 3 | . 3 . Catastrophic 2 | . 2 . Database Lockouts . | . . . Manual 2 | . 2 . Terminals 8 | . 8 . Fabricators . | . . . Repair Stations . | . . . Recycling Units . | . . . Scanalyzers . | . . . Garrison Access . | . . . Terminal Hacks 6 | . 5 1 Prototype ID Bank 2 | . 2 . Open Door 1 | . . 1 Branch Access Points 1 | . 1 . Emergency Access Points 1 | . 1 . Registered Prototypes 1 | . 1 . Fabricator Hacks . | . . . Repair Station Hacks . | . . . Recycling Unit Hacks . | . . . Scanalyzer . | . . . Garrison Access Hacks . | . . . Unauthorized Hacks . | . . . Terminals . | . . . Fabricators . | . . . Repair Stations . | . . . Recycling Units . | . . . Scanalyzers . | . . . Garrison Access . | . . . Data Cores Recovered . | . . . Used . | . . . Hacking Detections 3 | . 3 . Full Trace Events 1 | . 1 . Feedback Events 1 | . 1 . Corruption 1 | . 1 . Feedback Blocked . | . . . Robot Schematics Acquired . | . . . Robots Built . | . . . Authchips . | . . . Time . | . . . Total Robot Build Rating . | . . . Part Schematics Acquired . | . . . Parts Built . | . . . Authchips . | . . . Time . | . . . Total Part Build Rating . | . . . Parts Repaired . | . . . Time . | . . . Parts Recycled . | . . . Recycled Matter . | . . . Retrieved Matter . | . . . Retrieved Components . | . . . Parts Scanalyzed . | . . . Part Schematics Acquired . | . . . Parts Damaged . | . . . Bothacking | -11 -10 -10 ------------ Run | Yrd Mat Min Used RIF Installer . | . . . Robots Hacked . | . . . Non-combat . | . . . Combat . | . . . Robot Hacks Applied . | . . . Relay Couplers Released . | . . . Fabnet Peak Effective % . | . . . Robots Rewired . | . . . Allies Hacked . | . . . Hacks Repelled . | . . . Allies | -11 -10 -10 -------- Run | Yrd Mat Min Total Allies . | . . . Largest Group . | . . . Highest-Rated Group . | . . . Highest-Rated Ally . | . . . Total Orders . | . . . Ally Attacks . | . . . Total Damage . | . . . Kills . | . . . Allies Corrupted . | . . . Allies Melted . | . . . Intel | -11 -10 -10 ------- Run | Yrd Mat Min Robot Analysis Total . | . . . Derelict Logs Recovered 2 | . . 2 Drone Launches 7 | . . 7 Drone Recoveries 7 | . . 7 Exploration | -11 -10 -10 ------------- Run | Yrd Mat Min Turns Passed 731 | 56 446 229 Spaces Moved 450 | 49 230 171 Core 128 | 3 . 125 Treads 117 | . 73 44 Legs 2 | . . 2 Wheels 203 | 46 157 . Hover . | . . . Flight . | . . . Fastest Speed 50 | 50 80 50 Average Speed 112 | 78 114 119 Slowest Speed 250 | 80 240 250 Overloaded Moves . | . . . Propulsion Burnouts . | . . . Robots Hopped . | . . . Cave-ins Triggered . | . . . Exploration Rate (%) 32 | 3 57 37 Regions Visited 2 Branch Regions 1 Pre-discovered Areas . | . . . Known Exits Taken 1 | . 1 . Unknown Exits Taken 1 | 1 . . Scrap Searched . | . . . Spaces Dug . | . . . Terrain Destroyed . | . . . Melee . | . . . Projectile . | . . . AOE . | . . . Terrain Rammed . | . . . Walls Destroyed . | . . . Machines Disabled . | . . . Actions | -11 -10 -10 --------- Run | Yrd Mat Min Total 587 | 63 338 186 Wait 57 | 3 47 7 Move 448 | 48 229 171 Hop . | . . . Pick Up 10 | 6 4 . Fast Attach 12 | 6 5 1 Attach 5 | . 4 1 Detach 1 | . 1 . Swap 5 | . 3 2 Drop 3 | . 3 . Fire 46 | . 42 4 Melee . | . . . Ram . | . . . Kick . | . . . Crush . | . . . Escape Stasis . | . . . Rewire . | . . . Trap . | . . . Miscellaneous . | . . . Route ------- -11/Scrapyard -10/Materials (discovered 2 exits: *Min x2) -10/Mines (discovered 1 exit: Mat) History --------- Turn | Location | Event 17 | -11/Scrapyard | Discovered new exit (range 16) 57 | -11/Scrapyard | Entered Materials 150 | -10/Materials | Identified exit to Mines 314 | -10/Materials | Build established: Mutant 385 | -10/Materials | Lost 3 parts (1n1u1w) 391 | -10/Materials | Destroyed 7 combat bots 501 | -10/Materials | Core integrity fell below 50% 503 | -10/Materials | Entered Mines 547 | -10/Mines | Learned Materials non-interactive machine intel 577 | -10/Mines | Assembled infested the area 585 | -10/Mines | Identified exit to Materials 594 | -10/Mines | Released all parts (6) 635 | -10/Mines | Found the Drone Emporium 640 | -10/Mines | Found Prototype Device 640 | -10/Mines | Identified Sensor Drone Bay 666 | -10/Mines | Core integrity fell below 20% 732 | -10/Mines | Destroyed by as-30022 with Assembled F-torch Last Messages --------------- drones for all! No strings attached!" 00640_ Acquired Prototype Device. 00640_ Identified Sensor Drone Bay. 00645_ Sensor Drone released from Sensor Drone Bay. [Achievement: Release The Drones!] 00651_ Sensor Drone released from Sensor Drone Bay. 00651_ Sensor Drone retrieved by Sensor Drone Bay. 00663_ System corrupted: Matter fused (-6). 00663_ Sensor Drone retrieved by Sensor Drone Bay. 00688_ System corrupted: Matter fused (-7). 00688_ as-73389 destroyed. 00690_ Acquired 11 matter. 00690_ as-02948 suffers critical hit (Burn). 00690_ as-02948 destroyed. 00694_ SHOP.Sys disabled. 00702_ as-96914 destroyed. 00708_ Acquired 18 matter. Map ----- +----------------------------------------------------+ | | | | | | | | | | | | | | | | | | | ???????????????????????????????????????? | | ??????????????????????????######???????? | | ?????????????????????????##= * ##??????? | | ?????????????????????????# %=% #??????? | | ?????????????????????????# #??????? | | ?????????????????????????## #??????? | | ??????????????????????????## ##??????? | | ???????????????????????????# ###???????? | | ?????????###??#####????????# #?????????? | | ????????## ### ##?????### #?????????? | | ????????# ##????# #?????????? | | ????????# """ ###### #?????????? | | ????????# """ ##?????????? | | ????????# """ #######????? | | ????????# ###### #####""""##???? | | ????????# ##???## ###" "#???? | | ########## ###### @ ##" "#???? | | ## ## ### ###??? | | !![### a #### ## ##?? | | ######=!### a ## #?? | | ?????#*!## #### # #?? | | ?????#= #??## ###% #?? | | ?????# ##???##### ##?? | | ?????# ##????????######## #??? | | ???## #########?????????## #??? | | ## #??????????# ##?? | | #??????????## ##? | | # #### #???????????## #? | | ## ### ## ###????????????????# #? | | ?####??# #? #???????????????## #? | | ???????# #? #???????????????# #? | | ???????# #?## #???#???????????# ##? | | ??????## ##?# #?? #???????????## ##?? | | ??????# ### #? #????????????# #??? | | ?????## ## #? #????????????# #??? | | ?????# ## ##???????????# #??? | | ?????# # #?????????### #??? | | ?????# #?????????# #??? | | ?????## #????###### #??? | | ??????##### #????# ###??? | | ??????????## """ ##????# ######????? | +----------------------------------------------------+ Best States ------------- Heat Dissipation 35 Energy Generation 10 Energy Capacity 125 Matter Stores 300 Matter Capacity 300 Sight Range 16 Terrain Scan Density 10 Evasion (%) 50 Targeting Accuracy 5 Recoil Reduction 2 Item Schematics ----------------- None Robot Schematics ------------------ None Fabricated ------------ Nothing Alien Tech Used ----------------- None Achievements -------------- Release The Drones! Challenges ------------ None Game ------ Seed PhaseMobileAirjet Manual? 0 Play Time 00:19:10 Cumulative 43.7 hours Start 2024.08.13 @ 18:05:05 End 2024.12.10 @ 23:46:22 Sessions 3 Manual Loads 0 Difficulty Rogue Special Mode None Game No. 22 Rogue 22 Adventurer 0 Explorer 0 Win Type - Total 0 Types 0/0/0/0/0/0/0/0/0 Lore% 17 Gallery% 23 Achievement% 32 Wizard Run 0 Options --------- Layout 1 ASCII 0 Keyboard 0 Movement Mouse Keybinds 0 Fullscreen 1 Font 16/SmallcapsGlow Map View 55x38 Zoom Use 0% Tactical HUD 1 Map Filters NONE Filters NONE Steam 1 RUN: 5657a3e1-2be2-4d84-8ca5-046908a81b5c